lending/lending_fUSD_20241212
["ID","MTS","AMOUNT","RATE_DAILY","PERIOD"]
[345084773,1733991315007,500.0,0.00010958,2]
[345084774,1733991315265,500.0,0.00010958,2]
[345084775,1733991315553,500.0,0.00010958,2]
[345084776,1733991315761,500.0,0.00010958,2]
[345084777,1733991315829,500.0,0.00010958,2]
[345084778,1733991316006,503.735754,0.00010958,2]
[345084779,1733991316165,164.82,0.00010958,2]
[345084780,1733991318108,500.0,0.00010958,2]
[345084781,1733991318384,500.0,0.00010958,2]
[345084782,1733991318567,506.20534861,0.00010958,2]
[345084783,1733991318650,500.0,0.00010958,2]
[345084784,1733991318894,500.0,0.00010958,2]
[345084785,1733991319153,500.0,0.00010958,2]
[345084786,1733991319404,500.0,0.00010958,2]
[345084787,1733991319521,151.0,0.00012329,2]
[345084788,1733991319692,500.0,0.00010958,2]
[345084789,1733991319771,506.65906855,0.00010958,2]
[345084790,1733991319882,151.0,0.00012329,2]
[345084791,1733991319947,500.0,0.00010958,2]
[345084792,1733991320052,500.0,0.00010958,2]
[345084793,1733991320189,500.0,0.00010958,2]
[345084794,1733991320518,151.0,0.00012399,2]
[345084795,1733991320560,151.0,0.00012329,2]
[345084796,1733991320600,501.21353826,0.00010958,2]
[345084797,1733991320641,500.0,0.00010958,2]
[345084798,1733991321158,151.0,0.00013,2]
[345084799,1733991321200,151.0,0.00012329,2]
[345084800,1733991321250,500.0,0.00010958,2]
[345084801,1733991321310,500.0,0.00010958,2]
[345084802,1733991321350,151.0,0.00012399,2]
[345084803,1733991321395,500.0,0.00010958,2]
[345084804,1733991321435,151.0,0.00013,2]
[345084805,1733991321489,500.0,0.00010958,2]
[345084806,1733991321683,500.0,0.00010958,2]
[345084807,1733991321945,500.0,0.00010958,2]
[345084808,1733991322218,500.0,0.00010958,2]
[345084809,1733991322466,500.0,0.00010958,2]
[345084810,1733991322724,500.0,0.00010958,2]
[345084811,1733991322979,199.45,0.00010958,2]
[345084812,1733991330758,150.0,0.00019114,120]
[345084813,1733991331222,500.0,0.00010958,2]
[345084814,1733991331458,151.0,0.00012329,2]
[345084815,1733991331501,500.0,0.00010958,2]
[345084816,1733991331755,151.0,0.00012329,2]
[345084817,1733991331798,500.0,0.00010958,2]
[345084818,1733991332065,151.0,0.00012399,2]
[345084819,1733991332367,151.0,0.00013,2]
[345084820,1733991332644,500.0,0.00010958,2]
[345084821,1733991335117,220.203366,0.00012329,2]
[345084822,1733991335660,514.69,0.00010958,2]
[345084823,1733991336520,900.0,0.00011652,2]
[345084824,1733991337172,500.0,0.00010958,2]
[345084825,1733991337376,547.71,0.00011269,2]
[345084826,1733991339133,151.0,0.00012329,2]
[345084827,1733991339727,151.0,0.00012329,2]
[345084828,1733991340145,151.0,0.00012399,2]
[345084829,1733991340363,321.38747539,0.00010958,2]
[345084830,1733991340530,151.0,0.00013,2]
[345084831,1733991340705,500.0,0.00010958,2]
[345084832,1733991341034,500.0,0.00010958,2]
[345084833,1733991341234,500.0,0.00010958,2]
[345084834,1733991344131,500.0,0.00011089,2]
[345084835,1733991344955,500.0,0.00010958,2]
[345084836,1733991346295,500.19355742,0.00010958,2]
[345084837,1733991346339,500.0,0.00011089,2]
[345084838,1733991350027,500.0,0.00011089,2]
[345084839,1733991350275,500.0,0.00011099,2]
[345084840,1733991350536,500.0,0.00011099,2]
[345084841,1733991353593,500.0,0.00010958,2]
[345084842,1733991353868,500.0,0.00010958,2]
[345084843,1733991354146,500.0,0.00010958,2]
[345084844,1733991354393,500.0,0.00010958,2]
[345084845,1733991354517,501.36512585,0.00011089,2]
[345084846,1733991354671,500.0,0.00010958,2]
[345084847,1733991355037,500.0,0.00010958,2]
[345084848,1733991355218,500.0,0.00010958,2]
[345084849,1733991355284,500.0,0.00010958,2]
[345084850,1733991355541,500.0,0.00010958,2]
[345084851,1733991355797,500.0,0.00010958,2]
[345084852,1733991356050,500.0,0.00010958,2]
[345084853,1733991356321,500.0,0.00010958,2]
[345084854,1733991356610,500.0,0.00010958,2]
[345084855,1733991356874,500.0,0.00010958,2]
[345084856,1733991357250,500.0,0.00010958,2]
[345084857,1733991357508,500.0,0.00010958,2]
[345084858,1733991357814,597.5,0.00010958,2]
[345084859,1733991358814,500.0,0.00010958,2]
[345084860,1733991364178,413.24256851,0.00010958,2]
[345084861,1733991364875,500.0,0.00010958,2]
[345084862,1733991365132,500.0,0.00010958,2]
[345084863,1733991370818,500.0,0.00010958,2]
[345084864,1733991372002,500.0,0.00010958,2]
[345084865,1733991372365,500.0,0.00010958,2]
[345084866,1733991372670,500.0,0.00010958,2]
[345084867,1733991372928,500.0,0.00010958,2]
[345084868,1733991373196,500.0,0.00010958,2]
[345084869,1733991375599,500.0,0.00010958,2]
[345084870,1733991375774,537.94,0.00010958,2]
[345084871,1733991384237,503.99770186,0.00011089,2]
[345084872,1733991385327,500.0,0.00010958,2]
[345084873,1733991387976,525.352,0.00010958,2]
[345084874,1733991388950,500.0,0.00011089,2]
[345084875,1733991389188,365.0,0.000112,2]
[345084876,1733991389231,500.0,0.00011099,2]
[345084877,1733991389312,374.00752616,0.00011089,2]
[345084878,1733991389444,500.0,0.00011099,2]
[345084879,1733991389678,500.0,0.00011099,2]
[345084880,1733991389926,500.0,0.00011099,2]
[345084881,1733991390182,269.43,0.00011099,2]
[345084882,1733991390283,1187.5901,0.000122,2]
[345084883,1733991390828,500.0,0.00011089,2]
[345084884,1733991392465,310.49199413,0.00010958,2]
[345084885,1733991394203,500.0,0.00010958,2]
[345084886,1733991395542,500.0,0.00010958,2]
[345084887,1733991395794,500.0,0.00010958,2]
[345084888,1733991401269,500.0,0.00010958,2]
[345084889,1733991401440,500.0,0.00010958,2]
[345084890,1733991403457,165.16,0.00011089,2]
[345084891,1733991403746,500.0,8.364e-05,2]
[345084892,1733991404545,700.0,0.00010556,2]
[345084893,1733991405324,500.0,0.00011104,2]
[345084894,1733991406559,700.0,0.00011926,2]
[345084895,1733991407702,250.0,0.000101,2]
[345084896,1733991407887,500.0,0.00010958,2]
[345084897,1733991414200,2242.15,0.000111,2]
[345084898,1733991421404,500.0,0.00010958,2]
[345084899,1733991421644,500.0,0.00010958,2]
[345084900,1733991421896,228.81210326,0.00010958,2]
[345084901,1733991426467,500.0,0.00010958,2]
[345084902,1733991426538,500.0,0.00010958,2]
[345084903,1733991432219,1000.0,0.000112,2]
[345084904,1733991432865,250.0,0.00011089,2]
[345084905,1733991434916,500.0,0.00010958,2]
[345084906,1733991438347,500.0,0.00010958,2]
[345084907,1733991438592,500.0,0.00010958,2]
[345084908,1733991438828,354.77,0.00010958,2]
[345084909,1733991439510,500.0,0.00011089,2]
[345084910,1733991439623,500.0,0.00010958,2]
[345084911,1733991439875,500.0,0.00010958,2]
[345084912,1733991440209,378.96568561,0.00010958,2]
[345084913,1733991442342,500.0,0.00010958,2]
[345084914,1733991442589,201.43,0.00010958,2]
[345084915,1733991444489,500.0,0.00010958,2]
[345084916,1733991444755,500.0,0.00010958,2]
[345084917,1733991445022,500.0,0.00010958,2]
[345084918,1733991445274,500.0,0.00010958,2]
[345084919,1733991450893,150.0,0.00016219,120]
[345084920,1733991456395,500.0,0.00010958,2]
[345084921,1733991456642,608.81958249,0.00010958,2]
[345084922,1733991456701,500.0,0.00010958,2]
[345084923,1733991460532,500.0,0.00010958,2]
[345084924,1733991463889,500.0,0.00010958,2]
[345084925,1733991463937,500.0,0.00010958,2]
[345084926,1733991464370,462.35524577,0.00010958,2]
[345084927,1733991464431,500.0,0.00010958,2]
[345084928,1733991464686,500.0,0.00010958,2]
[345084929,1733991464937,500.0,0.00010958,2]
[345084930,1733991465186,489.99,0.00010958,2]
[345084931,1733991467548,200.0,0.0001111,2]
[345084932,1733991473791,500.0,0.00010958,2]
[345084933,1733991474048,500.0,0.00010958,2]
[345084934,1733991474280,500.0,0.00010958,2]
[345084935,1733991474696,500.0,0.00010958,2]
[345084936,1733991476234,500.0,0.00010958,2]
[345084937,1733991476493,613.7643509,0.00010958,2]
[345084938,1733991476533,578.85,0.00010958,2]
[345084939,1733991478772,500.0,0.00011089,2]
[345084940,1733991480368,500.0,0.00010958,2]
[345084941,1733991480474,500.0,0.00011089,2]
[345084942,1733991480615,500.0,0.00010958,2]
[345084943,1733991480874,500.0,0.00010958,2]
[345084944,1733991482616,1309.56,0.00010958,2]
[345084945,1733991482855,1309.56,0.00010958,2]
[345084946,1733991482922,500.0,0.00010958,2]
[345084947,1733991483133,1309.56,0.00010958,2]
[345084948,1733991483429,1309.56,0.00010958,2]
[345084949,1733991483708,1309.56,0.00010958,2]
[345084950,1733991483968,1309.56,0.00010958,2]
[345084951,1733991484592,1309.56,0.00010958,2]
[345084952,1733991484933,1309.56,0.00010958,2]
[345084953,1733991485137,1309.56,0.00010958,2]
[345084954,1733991485387,1309.56,0.00010958,2]
[345084955,1733991485533,500.0,0.00011089,2]
[345084956,1733991485627,1309.56,0.00010958,2]
[345084957,1733991485872,1309.56,0.00010958,2]
[345084958,1733991486187,1309.56,0.00010958,2]
[345084959,1733991486441,1309.56,0.00010958,2]
[345084960,1733991486679,1309.56,0.00010958,2]
[345084961,1733991486923,1309.56,0.00010958,2]
[345084962,1733991487164,1309.56,0.00010958,2]
[345084963,1733991487432,1309.56,0.00010958,2]
[345084964,1733991487686,1309.56,0.00010958,2]
[345084965,1733991487977,1309.56,0.00010958,2]
[345084966,1733991488242,1309.56,0.00010958,2]
[345084967,1733991488499,1309.56,0.00010958,2]
[345084968,1733991488775,1309.56,0.00010958,2]
[345084969,1733991489066,1309.61537375,0.00010958,2]
[345084970,1733991495593,500.0,0.00010958,2]
[345084971,1733991496437,500.0,0.00011089,2]
[345084972,1733991498502,500.48072049,0.00011089,2]
[345084973,1733991501187,500.0,0.00010958,2]
[345084974,1733991501453,446.33,0.00010958,2]
[345084975,1733991503518,500.0,0.00011089,2]
[345084976,1733991505849,500.0,0.00010958,2]
[345084977,1733991506941,247.0,0.00012329,2]
[345084978,1733991507218,500.0,0.00011089,2]
[345084979,1733991507290,247.0,0.00012329,2]
[345084980,1733991508911,500.0,0.00010958,2]
[345084981,1733991509167,182.98,0.00010958,2]
[345084982,1733991509337,500.0,0.00011089,2]
[345084983,1733991510716,104.02366005,0.0001766,120]
[345084984,1733991510742,45.97633995,0.0001766,120]
[345084985,1733991511719,569.9,0.00011089,2]
[345084986,1733991512922,508.68829723,0.00010958,2]
[345084987,1733991513977,929.73,0.00010958,2]
[345084988,1733991514235,929.73,0.00010958,2]
[345084989,1733991514494,929.73,0.00010958,2]
[345084990,1733991514746,929.73,0.00010958,2]
[345084991,1733991515000,929.73,0.00010958,2]
[345084992,1733991515252,929.73,0.00010958,2]
[345084993,1733991515657,500.0,0.00011089,2]
[345084994,1733991515695,929.73,0.00010958,2]
[345084995,1733991515753,929.73,0.00010958,2]
[345084996,1733991516007,929.73,0.00010958,2]
[345084997,1733991516251,929.73,0.00010958,2]
[345084998,1733991516516,929.73,0.00010958,2]
[345084999,1733991516781,929.73,0.00010958,2]
[345085000,1733991517033,929.73,0.00010958,2]
[345085001,1733991517233,516.96692812,0.00010958,2]
[345085002,1733991517284,929.73,0.00010958,2]
[345085003,1733991517550,929.73,0.00010958,2]
[345085004,1733991517801,929.73,0.00010958,2]
[345085005,1733991518074,929.73,0.00010958,2]
[345085006,1733991518337,929.73,0.00010958,2]
[345085007,1733991518576,929.73,0.00010958,2]
[345085008,1733991518686,500.0,0.00010958,2]
[345085009,1733991518851,929.73,0.00010958,2]
[345085010,1733991518943,500.0,0.00010958,2]
[345085011,1733991519125,929.73,0.00010958,2]
[345085012,1733991519367,929.73,0.00010958,2]
[345085013,1733991519530,500.0,0.00010958,2]
[345085014,1733991519609,929.73,0.00010958,2]
[345085015,1733991519795,511.72924481,0.00010958,2]
[345085016,1733991519848,929.83612286,0.00010958,2]
[345085017,1733991520018,230.0,0.000112,2]
[345085018,1733991521226,864.0146,0.000122,2]
[345085019,1733991522221,500.0,0.00010958,2]
[345085020,1733991524217,840.26132902,0.00012938,2]
[345085021,1733991524619,4372.65,0.00012565,2]
[345085022,1733991525121,500.0,0.00010958,2]
[345085023,1733991525371,500.0,0.00010958,2]
[345085024,1733991525471,500.0,0.00011089,2]
[345085025,1733991527463,500.0,0.00010958,2]
[345085026,1733991527609,183.454592,0.00010489,2]
[345085027,1733991527707,500.0,0.00010958,2]
[345085028,1733991527924,183.454592,0.00010664,2]
[345085029,1733991527979,500.0,0.00010958,2]
[345085030,1733991528196,183.454592,0.00010839,2]
[345085031,1733991528239,500.0,0.00010958,2]
[345085032,1733991528487,500.0,0.00010958,2]
[345085033,1733991528728,500.0,0.00010958,2]
[345085034,1733991528943,183.454592,0.00011014,2]
[345085035,1733991528985,636.38,0.00010958,2]
[345085036,1733991531337,399.73416134,0.00010958,2]
[345085037,1733991533436,500.0,0.00010958,2]
[345085038,1733991537246,547.8,0.00010958,2]
[345085039,1733991540823,2087.38905387,0.00012922,2]
[345085040,1733991544977,502.37697595,0.00011089,2]
[345085041,1733991546038,972.1,0.000112,2]
[345085042,1733991546319,500.0,0.00010958,2]
[345085043,1733991546687,545.45165209,0.00010958,2]
[345085044,1733991547015,413.89408,0.00013,2]
[345085045,1733991547056,503.00225308,0.00011089,2]
[345085046,1733991548790,500.0,0.00010958,2]
[345085047,1733991548936,506.58889304,0.00011089,2]
[345085048,1733991551213,501.54265564,0.00011089,2]
[345085049,1733991551603,500.0,0.00010958,2]
[345085050,1733991552920,500.0,0.00010958,2]
[345085051,1733991553080,500.0,0.00011089,2]
[345085052,1733991553226,500.0,0.00010958,2]
[345085053,1733991553343,357.77250783,0.00011099,2]
[345085054,1733991553484,500.0,0.00010958,2]
[345085055,1733991553739,500.0,0.00010958,2]
[345085056,1733991553925,521.20433,0.00010958,2]
[345085057,1733991554007,500.0,0.00010958,2]
[345085058,1733991554215,521.20433,0.00010958,2]
[345085059,1733991554259,450.7,0.00010958,2]
[345085060,1733991554458,150.112267,0.00010958,2]
[345085061,1733991554508,521.20433,0.00010958,2]
[345085062,1733991554775,150.112267,0.00010958,2]
[345085063,1733991554824,521.20433,0.00010958,2]
[345085064,1733991555075,150.112267,0.00010958,2]
[345085065,1733991555116,521.20433,0.00010958,2]
[345085066,1733991555381,150.112267,0.00010958,2]
[345085067,1733991555424,521.20433,0.00010958,2]
[345085068,1733991555676,150.112267,0.00010958,2]
[345085069,1733991555716,521.20433,0.00010958,2]
[345085070,1733991555980,150.112267,0.00010958,2]
[345085071,1733991556022,521.20433,0.00010958,2]
[345085072,1733991556268,150.112267,0.00011096,2]
[345085073,1733991556314,521.20433,0.00010999,2]
[345085074,1733991556356,500.0,0.00010958,2]
[345085075,1733991556548,150.112267,0.00011097,2]
[345085076,1733991556591,500.0,0.00010958,2]
[345085077,1733991556633,521.20433,0.00011096,2]
[345085078,1733991557141,521.20433,0.00011097,2]
[345085079,1733991557185,257.74,0.00010958,2]
[345085080,1733991557229,150.112267,0.00011098,2]
[345085081,1733991557274,500.0,0.00010958,2]
[345085082,1733991557316,521.20433,0.00011098,2]
[345085083,1733991557361,500.0,0.00010958,2]
[345085084,1733991557402,500.0,0.00010958,2]
[345085085,1733991557520,254.01,0.00010958,2]
[345085086,1733991557560,266.55,0.00010958,2]
[345085087,1733991557905,521.20433,0.00011098,2]
[345085089,1733991558901,14911.03,0.00012535,2]
[345085090,1733991559416,509.91573749,0.00010958,2]
[345085091,1733991562220,800.0,0.00012222,2]
[345085092,1733991562521,800.0,0.00012222,2]
[345085093,1733991563236,1067.52590986,0.00011978,2]
[345085094,1733991563321,500.0,0.00011089,2]
[345085095,1733991563401,800.0,0.00012222,2]
[345085096,1733991563587,500.0,0.00011099,2]
[345085097,1733991563692,800.0,0.00012222,2]
[345085098,1733991563843,500.0,0.00011099,2]
[345085099,1733991563991,800.0,0.00012222,2]
[345085100,1733991564293,801.8294527,0.00012222,2]
[345085101,1733991564438,500.0,0.00011099,2]
[345085102,1733991567425,315.4725552,0.00010958,2]
[345085103,1733991571291,500.0,0.00010958,2]
[345085104,1733991571548,166.65,0.00010958,2]
[345085105,1733991572600,173.34,0.00010045,2]
[345085106,1733991575282,500.0,0.00011089,2]
[345085107,1733991575543,500.0,0.00011099,2]
[345085108,1733991575815,500.0,0.00011099,2]
[345085109,1733991576052,500.0,0.00011099,2]
[345085110,1733991577875,500.0,0.00010958,2]
[345085111,1733991577990,466.03271916,0.00011089,2]
[345085112,1733991584658,500.0,0.00011089,2]
[345085113,1733991586059,500.0,0.00010958,2]
[345085114,1733991586528,291.265,0.0001294,2]
[345085115,1733991588953,543.17,0.00010958,2]
[345085116,1733991589312,543.17,0.00010958,2]
[345085117,1733991589571,543.17,0.00010958,2]
[345085118,1733991589807,818.12495,0.00013,2]
[345085119,1733991589890,543.17,0.00010958,2]
[345085120,1733991590156,543.17,0.00010958,2]
[345085121,1733991590408,543.17,0.00010958,2]
[345085122,1733991590667,543.17,0.00010958,2]
[345085123,1733991590923,543.17,0.00010958,2]
[345085124,1733991591257,543.17,0.00010958,2]
[345085125,1733991591522,456.64,0.0001235,2]
[345085126,1733991591560,543.17,0.00010958,2]
[345085127,1733991591779,543.17,0.00010958,2]
[345085128,1733991592038,543.17,0.00010958,2]
[345085129,1733991592297,543.17,0.00010958,2]
[345085130,1733991592602,543.17,0.00010958,2]
[345085131,1733991592866,543.17,0.00010958,2]
[345085132,1733991593116,543.17,0.00010958,2]
[345085133,1733991593509,543.17,0.00010958,2]
[345085134,1733991593614,5800.0,0.00011099,2]
[345085135,1733991593781,543.17,0.00010958,2]
[345085136,1733991594044,543.17,0.00010958,2]
[345085137,1733991594301,543.17,0.00010958,2]
[345085138,1733991594553,543.17,0.00010958,2]
[345085139,1733991594834,543.17,0.00010958,2]
[345085140,1733991595090,543.17,0.00010958,2]
[345085141,1733991595364,543.2,0.00010958,2]
[345085142,1733991598557,500.0,0.00011089,2]
[345085143,1733991598725,500.0,0.00011099,2]
[345085144,1733991598965,500.0,0.00011099,2]
[345085145,1733991599211,500.0,0.00011099,2]
[345085146,1733991599476,500.0,0.00011099,2]
[345085147,1733991599529,2366.97,0.000111,2]
[345085148,1733991599727,500.0,0.00011099,2]
[345085149,1733991603531,191.0,0.00011099,30]
[345085150,1733991603884,191.0,0.00011673,30]
[345085151,1733991604189,500.0,0.00011089,2]
[345085152,1733991604447,191.0,0.00012246,30]
[345085153,1733991604496,500.0,0.00011099,2]
[345085154,1733991604727,500.0,0.00011099,2]
[345085155,1733991604768,191.0,0.0001282,30]
[345085156,1733991604992,500.0,0.00011099,2]
[345085157,1733991606917,500.0,0.00011089,2]
[345085158,1733991607175,500.0,0.00011099,2]
[345085159,1733991607398,200.0,0.00013,2]
[345085160,1733991607454,500.0,0.00011099,2]
[345085161,1733991607716,507.74369148,0.00011099,2]
[345085162,1733991609209,500.0,0.00010958,2]
[345085163,1733991609458,500.0,0.00010958,2]
[345085164,1733991609726,500.0,0.00010958,2]
[345085165,1733991609967,500.0,0.00010958,2]
[345085166,1733991610226,578.64,0.00010958,2]
[345085167,1733991611571,500.0,0.00010958,2]
[345085168,1733991611816,500.0,0.00010958,2]
[345085169,1733991612077,500.0,0.00010958,2]
[345085170,1733991612331,500.0,0.00010958,2]
[345085171,1733991612403,3879.0,0.00011269,2]
[345085172,1733991612598,500.0,0.00010958,2]
[345085173,1733991614359,1112.22199484,0.00010877,2]
[345085174,1733991614694,500.0,0.00010958,2]
[345085175,1733991615081,500.0,0.00010958,2]
[345085176,1733991615339,241.02,0.00010958,2]
[345085177,1733991616340,5800.0,0.00011091,2]
[345085178,1733991618812,13728.0,0.00011269,2]
[345085179,1733991622468,200.0,0.00010984,2]
[345085180,1733991622779,200.0,0.00010991,2]
[345085181,1733991623070,200.0,0.00010973,2]
[345085182,1733991623365,200.0,0.00010994,2]
[345085183,1733991628941,150.0,0.00011269,2]
[345085184,1733991629545,500.0,0.00011089,2]
[345085185,1733991632583,344.91173,0.00013,2]
[345085186,1733991635395,1023.46388565,0.0001274,2]
[345085187,1733991638511,154.00350304,0.00011089,2]
[345085188,1733991642536,500.0,0.00011089,2]
[345085189,1733991642789,500.0,0.00011099,2]
[345085190,1733991643394,498.62380084,0.00011099,2]
[345085191,1733991645503,500.0,0.00011089,2]
[345085192,1733991645765,500.0,0.00011099,2]
[345085193,1733991646025,500.0,0.00011099,2]
[345085194,1733991646355,500.0,0.00011099,2]
[345085195,1733991646668,500.0,0.00011099,2]
[345085196,1733991646922,500.0,0.00011099,2]
[345085197,1733991647192,500.0,0.00011099,2]
[345085198,1733991647448,500.0,0.00011099,2]
[345085199,1733991647737,500.0,0.00011099,2]
[345085200,1733991648203,500.0,0.00011099,2]
[345085201,1733991648466,500.0,0.00011099,2]
[345085202,1733991648743,500.0,0.00011099,2]
[345085203,1733991651239,500.0,0.00011099,2]
[345085204,1733991651407,1064.60286196,0.00010877,2]
[345085205,1733991651496,500.0,0.00011099,2]
[345085206,1733991651758,473.41,0.00011099,2]
[345085207,1733991654175,500.0,0.00011089,2]
[345085208,1733991654509,500.0,0.00011099,2]
[345085209,1733991654755,500.0,0.00011099,2]
[345085210,1733991654991,500.0,0.00011099,2]
[345085211,1733991655277,500.0,0.00011099,2]
[345085212,1733991655520,500.0,0.00011099,2]
[345085213,1733991655560,2390.85,0.00010596,2]
[345085214,1733991655726,2390.85,0.0001286,2]
[345085215,1733991655793,500.0,0.00011099,2]
[345085216,1733991656052,500.0,0.00011099,2]
[345085217,1733991656309,500.0,0.00011099,2]
[345085218,1733991656579,548.62508411,0.00011099,2]
[345085219,1733991663183,1264.37795977,8.82e-05,2]
[345085220,1733991665343,500.0,0.00011089,2]
[345085221,1733991665735,231.12893752,0.00011099,2]
[345085222,1733991670569,432.37,0.000101,2]
[345085223,1733991671011,432.37,0.00011362,2]
[345085224,1733991671102,432.37,0.00012624,2]
[345085225,1733991675376,681.77079,0.00013,2]
[345085226,1733991690717,150.0,0.00016314,120]
[345085227,1733991697078,365.0,0.000119,2]
[345085228,1733991697666,500.0,0.00011089,2]
[345085229,1733991698125,411.2951,0.00013,2]
[345085230,1733991698279,500.0,0.00011099,2]
[345085231,1733991698520,500.0,0.00011099,2]
[345085232,1733991698766,500.0,0.00011099,2]
[345085233,1733991699047,500.0,0.00011099,2]
[345085234,1733991699299,193.38,0.00011099,2]
[345085235,1733991703760,500.0,0.00011089,2]
[345085236,1733991704072,500.0,0.00011099,2]
[345085237,1733991704358,500.0,0.00011099,2]
[345085238,1733991704635,500.0,0.00011099,2]
[345085239,1733991704873,500.0,0.00011099,2]
[345085240,1733991705146,500.0,0.00011099,2]
[345085241,1733991705631,500.0,0.00011099,2]
[345085242,1733991705885,500.0,0.00011099,2]
[345085243,1733991706157,500.0,0.00011099,2]
[345085244,1733991706412,459.38,0.00011099,2]
[345085245,1733991711428,500.0,0.00011089,2]
[345085246,1733991718159,287.42645,0.00013,2]
[345085247,1733991733786,1000.0,0.000119,2]
[345085248,1733991734900,3899.8529,0.00013,2]
[345085249,1733991737634,502.95809756,0.00011089,2]
[345085250,1733991737683,656.82,0.00012548,2]
[345085251,1733991746796,500.0,0.00011089,2]
[345085252,1733991747071,500.0,0.00011099,2]
[345085253,1733991747580,413.09545961,0.00011099,2]
[345085254,1733991760955,568.14233,0.00013,2]
[345085255,1733991762748,156.8,0.000122,2]
[345085256,1733991763188,202.3,0.000122,2]
[345085257,1733991763467,202.3,0.000122,2]
[345085258,1733991785461,2130.28,0.000111,2]
[345085259,1733991803760,239.52204,0.00013,2]
[345085260,1733991810717,150.0,0.00016962,120]
[345085261,1733991815979,234744.0,0.000129,2]
[345085262,1733991821332,230.0,0.000119,2]
[345085263,1733991821880,428.15146824,0.00012717,2]
[345085264,1733991822408,548.0073,0.00013,2]
[345085265,1733991832818,800.0,0.00012238,2]
[345085266,1733991833162,800.0,0.00012238,2]
[345085267,1733991833796,800.0,0.00012238,2]
[345085268,1733991834116,800.0,0.00012238,2]
[345085269,1733991834424,800.0,0.00012238,2]
[345085270,1733991834711,800.0,0.00012238,2]
[345085271,1733991835380,380.01,0.00011089,2]
[345085272,1733991846561,473.45194,0.00013,2]
[345085273,1733991847555,200.0,0.00012896,2]